[Event "*** SCC Grand Prix: Titled Tuesday Blitz"]
[Site "Chess.com"]
[Date "2020.07.21"]
[Round "2"]
[White "Riptide27"]
[Black "Bulldog167"]
[Result "1-0"]
[WhiteElo "2518"]
[BlackElo "2737"]
[TimeControl "180+1"]
[EndTime "10:19:06 PDT"]
[Termination "Riptide27 won by checkmate"]

1. d4 {[%clk 0:03:00.9]} 1... Nf6 {[%clk 0:02:59.9]} 2. c4 {[%clk 0:03:01.4]}
2... e6 {[%clk 0:03:00.5]} 3. Nc3 {[%clk 0:03:01.9]} 3... Bb4 {[%clk 0:02:59.7]}
4. Qc2 {[%clk 0:03:02.4]} 4... Nc6 {[%clk 0:02:59.6]} 5. Nf3 {[%clk 0:03:01.1]}
5... d6 {[%clk 0:02:59.5]} 6. Bd2 {[%clk 0:02:59.3]} 6... O-O {[%clk 0:02:55.5]}
7. a3 {[%clk 0:02:58.1]} 7... Bxc3 {[%clk 0:02:55.9]} 8. Bxc3 {[%clk 0:02:59]}
8... e5 {[%clk 0:02:56.4]} 9. e3 {[%clk 0:02:58.9]} 9... Re8 {[%clk 0:02:47.7]}
10. dxe5 {[%clk 0:02:57.3]} 10... dxe5 {[%clk 0:02:47.2]} 11. Be2 {[%clk
0:02:57.1]} 11... Bg4 {[%clk 0:02:44.7]} 12. O-O {[%clk 0:02:43.1]} 12... Qe7
{[%clk 0:02:35]} 13. Rad1 {[%clk 0:02:32]} 13... a5 {[%clk 0:02:29.9]} 14. h3
{[%clk 0:02:23.2]} 14... Bh5 {[%clk 0:02:29.7]} 15. Rd2 {[%clk 0:02:10.5]} 15...
Bg6 {[%clk 0:02:25.8]} 16. Qb3 {[%clk 0:02:04.6]} 16... Ne4 {[%clk 0:02:22.8]}
17. Qxb7 {[%clk 0:01:59.3]} 17... Nxd2 {[%clk 0:02:14.3]} 18. Nxd2 {[%clk
0:02:00.2]} 18... Qc5 {[%clk 0:01:59.8]} 19. Qb5 {[%clk 0:01:54]} 19... Qxb5
{[%clk 0:01:44]} 20. cxb5 {[%clk 0:01:54.9]} 20... Nd4 {[%clk 0:01:44.6]} 21.
Bc4 {[%clk 0:01:34.1]} 21... Nf5 {[%clk 0:01:42.2]} 22. a4 {[%clk 0:01:33]}
22... Nd6 {[%clk 0:01:42.4]} 23. Bd5 {[%clk 0:01:31.5]} 23... Ra7 {[%clk
0:01:37.8]} 24. e4 {[%clk 0:01:25.8]} 24... Kf8 {[%clk 0:01:28.9]} 25. Re1
{[%clk 0:01:22.5]} 25... f6 {[%clk 0:01:28.1]} 26. Nb3 {[%clk 0:01:21.6]} 26...
Bf7 {[%clk 0:01:28.1]} 27. Bxf7 {[%clk 0:01:14.8]} 27... Kxf7 {[%clk 0:01:29]}
28. Nxa5 {[%clk 0:01:15.2]} 28... Rea8 {[%clk 0:01:28.3]} 29. b4 {[%clk
0:01:14.4]} 29... Ke6 {[%clk 0:01:27.6]} 30. f3 {[%clk 0:01:12.3]} 30... Nb7
{[%clk 0:01:24.5]} 31. Nxb7 {[%clk 0:01:09.2]} 31... Rxb7 {[%clk 0:01:25.4]} 32.
Ra1 {[%clk 0:01:08.9]} 32... Rba7 {[%clk 0:01:23.9]} 33. a5 {[%clk 0:01:04.5]}
33... Rb7 {[%clk 0:01:24.1]} 34. b6 {[%clk 0:00:59.3]} 34... cxb6 {[%clk
0:01:24.4]} 35. a6 {[%clk 0:00:59.4]} 35... Rc7 {[%clk 0:01:24.9]} 36. Be1
{[%clk 0:00:58.8]} 36... Kd7 {[%clk 0:00:57.7]} 37. b5 {[%clk 0:00:56.2]} 37...
Rc5 {[%clk 0:00:56.8]} 38. Rb1 {[%clk 0:00:54.5]} 38... Kc7 {[%clk 0:00:57]} 39.
Bf2 {[%clk 0:00:53]} 39... Rc2 {[%clk 0:00:57.1]} 40. Rd1 {[%clk 0:00:45.4]}
40... Rc8 {[%clk 0:00:46.9]} 41. Rd5 {[%clk 0:00:44.1]} 41... g5 {[%clk
0:00:36.7]} 42. h4 {[%clk 0:00:37]} 42... h6 {[%clk 0:00:33.7]} 43. h5 {[%clk
0:00:33.6]} 43... Ra2 {[%clk 0:00:31.1]} 44. Be3 {[%clk 0:00:32.6]} 44... Rc2
{[%clk 0:00:23.7]} 45. Kh2 {[%clk 0:00:31.8]} 45... Rc3 {[%clk 0:00:17.4]} 46.
Bf2 {[%clk 0:00:29.4]} 46... Rc2 {[%clk 0:00:17.8]} 47. Kg3 {[%clk 0:00:29.6]}
47... Re8 {[%clk 0:00:15]} 48. Be3 {[%clk 0:00:25.2]} 48... Re6 {[%clk 0:00:12]}
49. Kg4 {[%clk 0:00:17.7]} 49... Rxg2+ {[%clk 0:00:08.3]} 50. Kf5 {[%clk
0:00:18.6]} 50... Re8 {[%clk 0:00:08.3]} 51. Kxf6 {[%clk 0:00:17.8]} 51... g4
{[%clk 0:00:08.2]} 52. fxg4 {[%clk 0:00:17.2]} 52... Rxg4 {[%clk 0:00:08.9]} 53.
Rxe5 {[%clk 0:00:17.8]} 53... Rxe4 {[%clk 0:00:03.4]} 54. Rxe8 {[%clk
0:00:17.6]} 54... Rxe8 {[%clk 0:00:03.2]} 55. Bxh6 {[%clk 0:00:18.5]} 55... Rh8
{[%clk 0:00:02.9]} 56. Bf4+ {[%clk 0:00:17.9]} 56... Kc8 {[%clk 0:00:02.2]} 57.
h6 {[%clk 0:00:18.8]} 57... Rf8+ {[%clk 0:00:02.4]} 58. Kg5 {[%clk 0:00:18.6]}
58... Kd7 {[%clk 0:00:02.9]} 59. h7 {[%clk 0:00:18.2]} 59... Ke6 {[%clk
0:00:03.6]} 60. Kg6 {[%clk 0:00:18.2]} 60... Rf6+ {[%clk 0:00:03.8]} 61. Kg7
{[%clk 0:00:17.6]} 61... Rf7+ {[%clk 0:00:02.7]} 62. Kg8 {[%clk 0:00:17.6]}
62... Rxf4 {[%clk 0:00:02.7]} 63. h8=Q {[%clk 0:00:16.5]} 63... Rg4+ {[%clk
0:00:03.5]} 64. Kf8 {[%clk 0:00:16.7]} 64... Rc4 {[%clk 0:00:03.2]} 65. Qg8+
{[%clk 0:00:16.1]} 65... Kd7 {[%clk 0:00:03.6]} 66. Qxc4 {[%clk 0:00:17]} 66...
Kd8 {[%clk 0:00:04.2]} 67. Qd5+ {[%clk 0:00:16.2]} 67... Kc7 {[%clk 0:00:04.6]}
68. Qc6+ {[%clk 0:00:16.9]} 68... Kd8 {[%clk 0:00:05.2]} 69. Qxb6+ {[%clk
0:00:17.5]} 69... Kd7 {[%clk 0:00:06.1]} 70. Qb7+ {[%clk 0:00:17.6]} 70... Kd8
{[%clk 0:00:07]} 71. Qd5+ {[%clk 0:00:15.8]} 71... Kc8 {[%clk 0:00:07.9]} 72. a7
{[%clk 0:00:16.2]} 72... Kc7 {[%clk 0:00:08.4]} 73. a8=Q {[%clk 0:00:15.7]}
73... Kb6 {[%clk 0:00:09.3]} 74. Qdc6# {[%clk 0:00:15.7]} 1-0

[Event "*** SCC Grand Prix: Titled Tuesday Blitz"]
[Site "Chess.com"]
[Date "2020.07.21"]
[Round "2"]
[White "MisiekZielony"]
[Black "arminmusovic"]
[Result "1/2-1/2"]
[WhiteElo "2245"]
[BlackElo "2552"]
[TimeControl "180+1"]
[EndTime "10:19:10 PDT"]
[Termination "Game drawn - insufficient material"]

1. c4 {[%clk 0:03:00]} 1... e5 {[%clk 0:02:59.8]} 2. Nc3 {[%clk 0:02:59.9]} 2...
Nf6 {[%clk 0:02:59.1]} 3. Nf3 {[%clk 0:02:59.8]} 3... e4 {[%clk 0:02:59.2]} 4.
Ng5 {[%clk 0:02:59.6]} 4... b5 {[%clk 0:02:59.1]} 5. d3 {[%clk 0:02:55.4]} 5...
exd3 {[%clk 0:02:56.1]} 6. cxb5 {[%clk 0:02:55.1]} 6... dxe2 {[%clk 0:02:56.2]}
7. Bxe2 {[%clk 0:02:55.1]} 7... Be7 {[%clk 0:02:50.6]} 8. O-O {[%clk 0:02:54.6]}
8... O-O {[%clk 0:02:51.1]} 9. Bf3 {[%clk 0:02:48.5]} 9... c6 {[%clk 0:02:50.5]}
10. bxc6 {[%clk 0:02:46.8]} 10... Nxc6 {[%clk 0:02:35.5]} 11. Nge4 {[%clk
0:02:41.6]} 11... Rb8 {[%clk 0:02:22.8]} 12. b3 {[%clk 0:02:32.7]} 12... Ne5
{[%clk 0:02:12.3]} 13. Bb2 {[%clk 0:01:20.6]} 13... Ba6 {[%clk 0:01:37.4]} 14.
Be2 {[%clk 0:01:15]} 14... Bb7 {[%clk 0:01:28.5]} 15. Ng3 {[%clk 0:01:03.6]}
15... Ng6 {[%clk 0:00:36.1]} 16. Qd2 {[%clk 0:00:47.1]} 16... Bb4 {[%clk
0:00:34.9]} 17. a3 {[%clk 0:00:45.3]} 17... Ba5 {[%clk 0:00:35.3]} 18. b4 {[%clk
0:00:45.2]} 18... Bb6 {[%clk 0:00:35.8]} 19. Na4 {[%clk 0:00:31.5]} 19... Bc7
{[%clk 0:00:35.2]} 20. Nc5 {[%clk 0:00:30.6]} 20... Ba8 {[%clk 0:00:30.6]} 21.
Na6 {[%clk 0:00:29.2]} 21... Bf4 {[%clk 0:00:30.8]} 22. Qd1 {[%clk 0:00:26.4]}
22... Rc8 {[%clk 0:00:29.4]} 23. Nc5 {[%clk 0:00:25.8]} 23... d5 {[%clk
0:00:27.1]} 24. Bf3 {[%clk 0:00:21.1]} 24... Re8 {[%clk 0:00:25.7]} 25. Nd3
{[%clk 0:00:21]} 25... Bb8 {[%clk 0:00:24.1]} 26. Rc1 {[%clk 0:00:18.6]} 26...
Qd6 {[%clk 0:00:23.8]} 27. Rxc8 {[%clk 0:00:18.2]} 27... Rxc8 {[%clk 0:00:24.7]}
28. Nc5 {[%clk 0:00:16.5]} 28... h5 {[%clk 0:00:23.9]} 29. Re1 {[%clk 0:00:15]}
29... h4 {[%clk 0:00:23.1]} 30. Nf1 {[%clk 0:00:14.8]} 30... a5 {[%clk
0:00:19.1]} 31. Qd4 {[%clk 0:00:14.4]} 31... axb4 {[%clk 0:00:18.6]} 32. axb4
{[%clk 0:00:14.6]} 32... Ba7 {[%clk 0:00:19]} 33. g3 {[%clk 0:00:13.2]} 33...
Bb8 {[%clk 0:00:17.9]} 34. Ne3 {[%clk 0:00:12.3]} 34... Ba7 {[%clk 0:00:15.3]}
35. Nf5 {[%clk 0:00:12.2]} 35... Qc7 {[%clk 0:00:13.6]} 36. Nxh4 {[%clk
0:00:12]} 36... Nxh4 {[%clk 0:00:13.4]} 37. Qxh4 {[%clk 0:00:11.9]} 37... Qd8
{[%clk 0:00:12]} 38. Bxf6 {[%clk 0:00:11.5]} 38... Qxf6 {[%clk 0:00:11.9]} 39.
Qxf6 {[%clk 0:00:11.6]} 39... gxf6 {[%clk 0:00:12.8]} 40. Rd1 {[%clk 0:00:11.9]}
40... Rd8 {[%clk 0:00:11.8]} 41. h4 {[%clk 0:00:09.8]} 41... Kg7 {[%clk
0:00:12.1]} 42. Nd3 {[%clk 0:00:10]} 42... Bc6 {[%clk 0:00:11.8]} 43. Nf4 {[%clk
0:00:10]} 43... Ba4 {[%clk 0:00:10.4]} 44. Rd2 {[%clk 0:00:09.5]} 44... Bb6
{[%clk 0:00:08.2]} 45. Nxd5 {[%clk 0:00:08.9]} 45... Bc7 {[%clk 0:00:06.4]} 46.
Kg2 {[%clk 0:00:08.8]} 46... Be5 {[%clk 0:00:06.6]} 47. Rd3 {[%clk 0:00:04.7]}
47... Bb5 {[%clk 0:00:06.8]} 48. Rd1 {[%clk 0:00:04.6]} 48... Bc4 {[%clk
0:00:07.1]} 49. h5 {[%clk 0:00:04.3]} 49... Rd6 {[%clk 0:00:06.2]} 50. Ne3
{[%clk 0:00:04.5]} 50... Rxd1 {[%clk 0:00:06]} 51. Bxd1 {[%clk 0:00:04.8]} 51...
Bb5 {[%clk 0:00:05.7]} 52. Bf3 {[%clk 0:00:04.9]} 52... Bc3 {[%clk 0:00:05.8]}
53. Nf5+ {[%clk 0:00:04.8]} 53... Kh8 {[%clk 0:00:05.3]} 54. Nd6 {[%clk
0:00:05.1]} 54... Ba4 {[%clk 0:00:04.3]} 55. b5 {[%clk 0:00:05.3]} 55... Bb4
{[%clk 0:00:04.1]} 56. Nxf7+ {[%clk 0:00:04.7]} 56... Kg7 {[%clk 0:00:04.7]} 57.
Nd8 {[%clk 0:00:05]} 57... Bxb5 {[%clk 0:00:04.8]} 58. Ne6+ {[%clk 0:00:04.9]}
58... Kh6 {[%clk 0:00:05.4]} 59. g4 {[%clk 0:00:05.1]} 59... Bd7 {[%clk
0:00:04.8]} 60. Nd4 {[%clk 0:00:05.3]} 60... Bd6 {[%clk 0:00:05]} 61. Be4 {[%clk
0:00:05.4]} 61... Kg5 {[%clk 0:00:05.3]} 62. Bf5 {[%clk 0:00:05.5]} 62... Bc5
{[%clk 0:00:04.6]} 63. Ne6+ {[%clk 0:00:05.4]} 63... Bxe6 {[%clk 0:00:04.5]} 64.
Bxe6 {[%clk 0:00:05.9]} 64... Bb4 {[%clk 0:00:05.1]} 65. Bf5 {[%clk 0:00:06.2]}
65... Bd2 {[%clk 0:00:06]} 66. h6 {[%clk 0:00:06.6]} 66... Bc1 {[%clk
0:00:06.9]} 67. Kg3 {[%clk 0:00:07]} 67... Kxh6 {[%clk 0:00:06.2]} 68. f4 {[%clk
0:00:07.3]} 68... Kg7 {[%clk 0:00:06.6]} 69. g5 {[%clk 0:00:07.7]} 69... Ba3
{[%clk 0:00:07.5]} 70. gxf6+ {[%clk 0:00:07.5]} 70... Kxf6 {[%clk 0:00:08.4]}
71. Kg4 {[%clk 0:00:08]} 71... Bd6 {[%clk 0:00:09.2]} 72. Be4 {[%clk 0:00:08.6]}
72... Bxf4 {[%clk 0:00:10.1]} 1/2-1/2

[Event "*** SCC Grand Prix: Titled Tuesday Blitz"]
[Site "Chess.com"]
[Date "2020.07.21"]
[Round "2"]
[White "Efremov_Vlad"]
[Black "Giraffe_Chess"]
[Result "1-0"]
[WhiteElo "2187"]
[BlackElo "2404"]
[TimeControl "180+1"]
[EndTime "10:19:12 PDT"]
[Termination "Efremov_Vlad won by checkmate"]

1. d4 {[%clk 0:03:00.9]} 1... f5 {[%clk 0:02:59.2]} 2. c4 {[%clk 0:03:00.5]}
2... Nf6 {[%clk 0:02:58.8]} 3. Nc3 {[%clk 0:03:00.4]} 3... e6 {[%clk 0:02:58.6]}
4. e3 {[%clk 0:02:51.5]} 4... Be7 {[%clk 0:02:54.6]} 5. Bd3 {[%clk 0:02:51.5]}
5... O-O {[%clk 0:02:54.8]} 6. Nge2 {[%clk 0:02:51.1]} 6... d6 {[%clk
0:02:54.2]} 7. f3 {[%clk 0:02:48.9]} 7... e5 {[%clk 0:02:54.1]} 8. Bd2 {[%clk
0:02:45.4]} 8... Nc6 {[%clk 0:02:47.6]} 9. a3 {[%clk 0:02:31]} 9... Qe8 {[%clk
0:02:42.1]} 10. O-O {[%clk 0:02:05.2]} 10... a6 {[%clk 0:02:39.4]} 11. Qc2
{[%clk 0:02:04.4]} 11... Qg6 {[%clk 0:02:27.6]} 12. Nd5 {[%clk 0:01:56.6]} 12...
Bd8 {[%clk 0:02:20.9]} 13. b4 {[%clk 0:01:35]} 13... Ne7 {[%clk 0:01:57.6]} 14.
Nxf6+ {[%clk 0:01:24]} 14... Qxf6 {[%clk 0:01:47.7]} 15. Bc3 {[%clk 0:01:15.8]}
15... Qh6 {[%clk 0:01:39]} 16. Qd2 {[%clk 0:01:00.4]} 16... Ng6 {[%clk
0:01:37.3]} 17. Ng3 {[%clk 0:00:43.4]} 17... Bg5 {[%clk 0:01:21.3]} 18. Rae1
{[%clk 0:00:32.9]} 18... f4 {[%clk 0:01:17.8]} 19. exf4 {[%clk 0:00:18.5]} 19...
Nxf4 {[%clk 0:01:16.5]} 20. Qc2 {[%clk 0:00:12.8]} 20... exd4 {[%clk 0:01:08.9]}
21. Bxd4 {[%clk 0:00:12.2]} 21... Nxd3 {[%clk 0:01:09.1]} 22. Qxd3 {[%clk
0:00:13.1]} 22... Bf4 {[%clk 0:01:06.3]} 23. Qe4 {[%clk 0:00:09]} 23... c6
{[%clk 0:00:37.3]} 24. Be3 {[%clk 0:00:06.6]} 24... Bd7 {[%clk 0:00:20.5]} 25.
Bxf4 {[%clk 0:00:06.3]} 25... Qxf4 {[%clk 0:00:21.4]} 26. Qxf4 {[%clk
0:00:05.6]} 26... Rxf4 {[%clk 0:00:22.3]} 27. Re7 {[%clk 0:00:05.8]} 27... Rf7
{[%clk 0:00:22.2]} 28. Rfe1 {[%clk 0:00:05]} 28... Kf8 {[%clk 0:00:21]} 29.
Rxf7+ {[%clk 0:00:04.8]} 29... Kxf7 {[%clk 0:00:21.9]} 30. Ne4 {[%clk
0:00:05.1]} 30... d5 {[%clk 0:00:19.4]} 31. Nd6+ {[%clk 0:00:05]} 31... Kf6
{[%clk 0:00:17.9]} 32. Nxb7 {[%clk 0:00:05.6]} 32... dxc4 {[%clk 0:00:17.3]} 33.
Nc5 {[%clk 0:00:06.3]} 33... Bf5 {[%clk 0:00:16.2]} 34. Rc1 {[%clk 0:00:06.2]}
34... Bd3 {[%clk 0:00:11.7]} 35. Nxd3 {[%clk 0:00:06.4]} 35... cxd3 {[%clk
0:00:12.6]} 36. Kf2 {[%clk 0:00:06.6]} 36... Re8 {[%clk 0:00:12]} 37. Rd1 {[%clk
0:00:06.3]} 37... Re2+ {[%clk 0:00:12]} 38. Kf1 {[%clk 0:00:06.7]} 38... Ra2
{[%clk 0:00:10.1]} 39. Rxd3 {[%clk 0:00:06.2]} 39... Ke5 {[%clk 0:00:10.5]} 40.
Rc3 {[%clk 0:00:06.6]} 40... Kd4 {[%clk 0:00:10.6]} 41. Rxc6 {[%clk 0:00:06.3]}
41... Rxa3 {[%clk 0:00:10.4]} 42. Rc7 {[%clk 0:00:06.2]} 42... Ke3 {[%clk
0:00:09.4]} 43. Re7+ {[%clk 0:00:06.3]} 43... Kd3 {[%clk 0:00:09.7]} 44. Rxg7
{[%clk 0:00:06.9]} 44... h5 {[%clk 0:00:08.8]} 45. Rh7 {[%clk 0:00:06.7]} 45...
Kc3 {[%clk 0:00:07.8]} 46. Rxh5 {[%clk 0:00:06.7]} 46... Kxb4 {[%clk 0:00:08.3]}
47. Rh8 {[%clk 0:00:06.8]} 47... Kc4 {[%clk 0:00:08]} 48. Ra8 {[%clk 0:00:06.9]}
48... a5 {[%clk 0:00:07.4]} 49. Kf2 {[%clk 0:00:07.1]} 49... Ra2+ {[%clk
0:00:07.5]} 50. Kg3 {[%clk 0:00:06.7]} 50... a4 {[%clk 0:00:07.8]} 51. h4 {[%clk
0:00:07.1]} 51... a3 {[%clk 0:00:08]} 52. h5 {[%clk 0:00:07.3]} 52... Ra1 {[%clk
0:00:06.9]} 53. h6 {[%clk 0:00:07.4]} 53... Rh1 {[%clk 0:00:06.8]} 54. Rxa3
{[%clk 0:00:06.1]} 54... Rxh6 {[%clk 0:00:07.2]} 55. Ra4+ {[%clk 0:00:05.3]}
55... Kd5 {[%clk 0:00:06.8]} 56. Re4 {[%clk 0:00:05.9]} 56... Rg6+ {[%clk
0:00:05.7]} 57. Kf2 {[%clk 0:00:06.3]} 57... Rf6 {[%clk 0:00:05.6]} 58. g4
{[%clk 0:00:05.7]} 58... Rg6 {[%clk 0:00:05.5]} 59. Kg3 {[%clk 0:00:06.2]} 59...
Rf6 {[%clk 0:00:05.4]} 60. Re1 {[%clk 0:00:06.4]} 60... Rg6 {[%clk 0:00:05]} 61.
f4 {[%clk 0:00:07]} 61... Rg7 {[%clk 0:00:04.9]} 62. g5 {[%clk 0:00:07.1]} 62...
Rg8 {[%clk 0:00:04.9]} 63. Kg4 {[%clk 0:00:07.7]} 63... Rf8 {[%clk 0:00:04.8]}
64. f5 {[%clk 0:00:08]} 64... Rg8 {[%clk 0:00:04.8]} 65. g6 {[%clk 0:00:08.6]}
65... Kd6 {[%clk 0:00:03.7]} 66. Kg5 {[%clk 0:00:08.9]} 66... Rc8 {[%clk
0:00:03.3]} 67. f6 {[%clk 0:00:08.3]} 67... Rc2 {[%clk 0:00:04.2]} 68. Kh6
{[%clk 0:00:07.7]} 68... Rh2+ {[%clk 0:00:03.8]} 69. Kg7 {[%clk 0:00:08.3]}
69... Rg2 {[%clk 0:00:04.2]} 70. f7 {[%clk 0:00:08.5]} 70... Rh2 {[%clk
0:00:04.2]} 71. f8=Q+ {[%clk 0:00:08.7]} 71... Kd5 {[%clk 0:00:04]} 72. Qf5+
{[%clk 0:00:08.8]} 72... Kd4 {[%clk 0:00:03.9]} 73. Qf4+ {[%clk 0:00:09.1]}
73... Kd3 {[%clk 0:00:04.8]} 74. Qxh2 {[%clk 0:00:09.4]} 74... Kc4 {[%clk
0:00:05.7]} 75. Qc2+ {[%clk 0:00:09.4]} 75... Kd4 {[%clk 0:00:05.8]} 76. Rd1+
{[%clk 0:00:09.7]} 76... Ke5 {[%clk 0:00:05.8]} 77. Qe2+ {[%clk 0:00:10]} 77...
Kf4 {[%clk 0:00:06.7]} 78. Rf1+ {[%clk 0:00:10]} 78... Kg5 {[%clk 0:00:07.6]}
79. Qg2+ {[%clk 0:00:10.3]} 79... Kh5 {[%clk 0:00:07.8]} 80. Rh1# {[%clk
0:00:11]} 1-0

[Event "*** SCC Grand Prix: Titled Tuesday Blitz"]
[Site "Chess.com"]
[Date "2020.07.21"]
[Round "2"]
[White "frederiksvane"]
[Black "Zhani-Z"]
[Result "1-0"]
[WhiteElo "2673"]
[BlackElo "2422"]
[TimeControl "180+1"]
[EndTime "10:19:16 PDT"]
[Termination "frederiksvane won by resignation"]

1. e4 {[%clk 0:03:00.9]} 1... e5 {[%clk 0:02:59.4]} 2. Nf3 {[%clk 0:03:00.8]}
2... Nc6 {[%clk 0:02:59.8]} 3. Bb5 {[%clk 0:03:01.4]} 3... a6 {[%clk 0:02:59.7]}
4. Ba4 {[%clk 0:03:01.8]} 4... d6 {[%clk 0:02:59.9]} 5. O-O {[%clk 0:03:00.1]}
5... Bd7 {[%clk 0:02:56.9]} 6. Re1 {[%clk 0:02:43.5]} 6... g6 {[%clk 0:02:56.3]}
7. c3 {[%clk 0:02:43.7]} 7... Bg7 {[%clk 0:02:56.6]} 8. d4 {[%clk 0:02:42.5]}
8... Nf6 {[%clk 0:02:57.1]} 9. Nbd2 {[%clk 0:02:41.5]} 9... O-O {[%clk
0:02:56.9]} 10. h3 {[%clk 0:02:41.6]} 10... Re8 {[%clk 0:02:56.9]} 11. Bc2
{[%clk 0:02:40.6]} 11... b5 {[%clk 0:02:48.8]} 12. Nf1 {[%clk 0:02:39.2]} 12...
Na5 {[%clk 0:02:48.9]} 13. Ng3 {[%clk 0:02:36.9]} 13... c5 {[%clk 0:02:44]} 14.
d5 {[%clk 0:02:34.4]} 14... Nc4 {[%clk 0:02:43.9]} 15. b3 {[%clk 0:02:32]} 15...
Nb6 {[%clk 0:02:44]} 16. a4 {[%clk 0:02:29.8]} 16... bxa4 {[%clk 0:02:39.3]} 17.
bxa4 {[%clk 0:02:30.1]} 17... Qc7 {[%clk 0:02:21.2]} 18. Bd3 {[%clk 0:02:26.2]}
18... c4 {[%clk 0:02:10.2]} 19. Bf1 {[%clk 0:02:19]} 19... a5 {[%clk 0:02:08.6]}
20. Be3 {[%clk 0:02:13.6]} 20... Reb8 {[%clk 0:01:58.1]} 21. Nd2 {[%clk
0:02:10.5]} 21... Bc8 {[%clk 0:01:45.5]} 22. Bxb6 {[%clk 0:01:49.6]} 22... Qxb6
{[%clk 0:01:46.4]} 23. Bxc4 {[%clk 0:01:44.3]} 23... Bh6 {[%clk 0:01:28.8]} 24.
Bb5 {[%clk 0:01:32.5]} 24... Qc7 {[%clk 0:01:25.3]} 25. Qc2 {[%clk 0:01:22.7]}
25... Nd7 {[%clk 0:01:14.4]} 26. Nb3 {[%clk 0:01:11.6]} 26... Ba6 {[%clk
0:00:52]} 27. Bxd7 {[%clk 0:01:05.5]} 27... Qxd7 {[%clk 0:00:52.1]} 28. Nxa5
{[%clk 0:01:05.8]} 28... Bb7 {[%clk 0:00:46]} 29. Nxb7 {[%clk 0:01:03.1]} 29...
Rxb7 {[%clk 0:00:46.9]} 30. Ra2 {[%clk 0:00:57.9]} 30... Rba7 {[%clk 0:00:29.9]}
31. Rea1 {[%clk 0:00:55.5]} 31... Ra5 {[%clk 0:00:30.8]} 32. Ne2 {[%clk
0:00:51.6]} 32... Qc7 {[%clk 0:00:29.7]} 33. c4 {[%clk 0:00:48.2]} 33... Rc5
{[%clk 0:00:27.2]} 34. Qd3 {[%clk 0:00:39]} 34... Rxc4 {[%clk 0:00:24.8]} 35. a5
{[%clk 0:00:39.2]} 35... Rc5 {[%clk 0:00:13.6]} 36. a6 {[%clk 0:00:39.1]} 36...
Ra7 {[%clk 0:00:13.9]} 37. g3 {[%clk 0:00:34.2]} 37... Kg7 {[%clk 0:00:13.7]}
38. Kg2 {[%clk 0:00:34.2]} 38... Bg5 {[%clk 0:00:12.8]} 39. Ng1 {[%clk
0:00:33.6]} 39... h5 {[%clk 0:00:12.2]} 40. Nf3 {[%clk 0:00:33.8]} 40... Bd8
{[%clk 0:00:11.7]} 41. h4 {[%clk 0:00:33.2]} 41... Rc3 {[%clk 0:00:11.6]} 42.
Qe2 {[%clk 0:00:32.4]} 42... Qc5 {[%clk 0:00:11.3]} 43. Ne1 {[%clk 0:00:28.8]}
43... Bb6 {[%clk 0:00:11]} 44. Rc2 {[%clk 0:00:27.4]} 44... Qd4 {[%clk 0:00:10]}
45. Rxc3 {[%clk 0:00:26.5]} 45... Qxc3 {[%clk 0:00:10.9]} 46. Ra2 {[%clk
0:00:22.4]} 46... Bc5 {[%clk 0:00:10.4]} 47. Nd3 {[%clk 0:00:20.9]} 47... Bd4
{[%clk 0:00:10.4]} 48. Ne1 {[%clk 0:00:18]} 48... Qb3 {[%clk 0:00:10]} 49. Nf3
{[%clk 0:00:17.8]} 49... Bc5 {[%clk 0:00:10.1]} 50. Qc2 {[%clk 0:00:17.9]} 50...
Qxc2 {[%clk 0:00:09.2]} 51. Rxc2 {[%clk 0:00:18.8]} 51... Rxa6 {[%clk 0:00:10]}
52. Nd2 {[%clk 0:00:19.7]} 52... Ra4 {[%clk 0:00:10.1]} 53. Kf3 {[%clk
0:00:17.3]} 53... f5 {[%clk 0:00:10]} 54. exf5 {[%clk 0:00:16.6]} 54... gxf5
{[%clk 0:00:10.9]} 55. Ke2 {[%clk 0:00:16.2]} 55... Kf6 {[%clk 0:00:10.4]} 56.
Nb3 {[%clk 0:00:16.6]} 56... Bb4 {[%clk 0:00:07.2]} 57. Nc1 {[%clk 0:00:14.2]}
57... Ra3 {[%clk 0:00:07]} 58. Nd3 {[%clk 0:00:12.4]} 58... Ba5 {[%clk
0:00:07.3]} 59. Rc6 {[%clk 0:00:12.6]} 59... e4 {[%clk 0:00:07.4]} 60. Rxd6+
{[%clk 0:00:11.8]} 60... Kf7 {[%clk 0:00:07.8]} 61. Ne5+ {[%clk 0:00:10.5]}
61... Kg7 {[%clk 0:00:08.3]} 62. Rg6+ {[%clk 0:00:10.3]} 62... Kh7 {[%clk
0:00:08.2]} 63. Rg5 {[%clk 0:00:11]} 63... Bb6 {[%clk 0:00:07.8]} 64. Rxf5
{[%clk 0:00:10.8]} 64... Kg7 {[%clk 0:00:08.5]} 65. Rf7+ {[%clk 0:00:10.6]}
65... Kg8 {[%clk 0:00:08.4]} 66. Rf5 {[%clk 0:00:11.2]} 66... Ra2+ {[%clk
0:00:09.3]} 67. Kf1 {[%clk 0:00:11.5]} 67... Bd4 {[%clk 0:00:09]} 68. Nc4 {[%clk
0:00:11.6]} 68... Rc2 {[%clk 0:00:08.6]} 69. Ne3 {[%clk 0:00:11.7]} 69... Bxe3
{[%clk 0:00:08.3]} 70. fxe3 {[%clk 0:00:12.6]} 70... Rd2 {[%clk 0:00:09.1]} 71.
Rxh5 {[%clk 0:00:12.4]} 71... Kg7 {[%clk 0:00:08.2]} 72. Re5 {[%clk 0:00:12.7]}
72... Kf6 {[%clk 0:00:08.1]} 73. Rxe4 {[%clk 0:00:13.2]} 73... Rxd5 {[%clk
0:00:09]} 74. Kg2 {[%clk 0:00:13.7]} 74... Kf5 {[%clk 0:00:08.6]} 75. Kf3 {[%clk
0:00:13.9]} 1-0